Cogmind - Beta 15 @@@ ROGUE MODE // 2025.10.18 @ 15:53:14 Player: unq Result: Self-destructed Performance ------------- Evolutions (3) 1500 Regions Visited (12) 2400 Robots Destroyed (128) 640 Value Destroyed (5452) 5452 Prototype IDs (4) 80 Alien Tech Used (0) 0 Bonus (1662) 1662 TOTAL SCORE: 11734 Bonus ------- High Alert Combat Kills 1206 Follower Combat Kills 56 Entered Garrisons 400 Cogmind --------- Core Integrity 542/700 Matter 15/300 Energy 100/100 System Corruption 29% Temperature Cool (0) Movement Treading (330) Ox2 Location -7/Factory Parts ------- > --- POWER (1) -------- (None) > --- PROPULSION (4) --- Armored Treads Heavy Treads > --- UTILITY (5) ------ High-capacity Storage Unit Structural Scanner Experimental Sensor Array Improved Signal Interpreter Armor Integrity Analyzer > --- WEAPON (3) ------- Plasma Cannon Heavy Ion Cannon > --- INVENTORY (20) --- Micro Nuclear Core Light Treads Improved Cooling System Disposable Heat Sink High-capacity Matter Pod (0) Advanced Terrain Scanner Seismic Detector Seismic Detector ECM Suite High-powered Tractor Beam Heavy Ion Cannon Heavy Assault Rifle Heavy Assault Rifle Heavy Assault Rifle Autogun Gauss Rifle Gauss Rifle Gauss Rifle Heavy Machine Gun Plasma Cutter Peak State ------------ > --- POWER ------------ Antimatter Reactor > --- PROPULSION ------- Armored Treads Medium Treads Heavy Treads > --- UTILITY ---------- High-capacity Storage Unit Advanced Visual Processing Unit Experimental Sensor Array Improved Signal Interpreter Hardened Medium Armor Plating > --- WEAPON ----------- Improved Assault Rifle Gauss Rifle Rocket Launcher > --- INVENTORY -------- Micro Nuclear Core Antimatter Reactor Light Treads Light Treads Improved Cooling System Disposable Heat Sink High-capacity Matter Pod Structural Scanner Advanced Terrain Scanner Seismic Detector Armor Integrity Analyzer ECM Suite High-powered Tractor Beam Heavy Ion Cannon Heavy Ion Cannon Gauss Rifle Gauss Rifle Heavy Machine Gun Plasma Cutter Heavy Mace [Rating: 60] Favorites ----------- Power Improved Ion Engine Engine Improved Ion Engine Power Core Micro Nuclear Core Reactor Antimatter Reactor Propulsion Improved Treads Treads Improved Treads Leg Aluminum Leg Wheel Wheel Utility High-capacity Storage Unit Device Seismic Detector Storage High-capacity Storage Unit Processor Advanced Visual Processing Unit Hackware Hacking Suite Protection Hardened Light Armor Plating Weapon Autogun Energy Gun Medium Laser Energy Cannon Heavy Ion Cannon Ballistic Gun Autogun Ballistic Cannon Assault Cannon Launcher Rocket Launcher Special Weapon Plasma Cutter Impact Weapon Heavy Mace Build | -11 -10 -10 -10 -9 -8 -8 -8 -8 -8 -7 -7 -7 ------- Run | Yrd Mat Min Exi Min Mat Gar Mat Gar Mat Fac Was Fac Slots Evolved 6 | . . . . . 4 . . . . 2 . . Power . | . . . . . . . . . . . . . Propulsion 2 | . . . . . 1 . . . . 1 . . Utility 3 | . . . . . 2 . . . . 1 . . Weapon 1 | . . . . . 1 . . . . . . . Parts Attached 94 | 6 15 1 1 1 24 10 8 2 5 11 6 4 Power 10 | 1 1 . 1 . 1 1 . . . 3 2 . Engine 5 | 1 1 . 1 . 1 . . . . 1 . . Core 3 | . . . . . . 1 . . . 2 . . Reactor 2 | . . . . . . . . . . . 2 . Propulsion 21 | 2 1 1 . . 7 1 4 . 2 1 2 . Treads 19 | 2 1 1 . . 7 1 2 . 2 1 2 . Leg 1 | . . . . . . . 1 . . . . . Wheel 1 | . . . . . . . 1 . . . . . Hover . | . . . . . . . . . . . . . Flight . | . . . . . . . . . . . . . Utility 36 | 2 3 . . 1 13 4 2 1 3 4 1 2 Device 16 | 1 2 . . . 4 3 2 . . 3 . 1 Storage 4 | 1 1 . . 1 . . . . . . . 1 Processor 4 | . . . . . . . . . 2 1 1 . Hackware 1 | . . . . . 1 . . . . . . . Protection 11 | . . . . . 8 1 . 1 1 . . . Artifact . | . . . . . . . . . . . . . Weapon 27 | 1 10 . . . 3 4 2 1 . 3 1 2 Energy Gun 4 | 1 2 . . . . 1 . . . . . . Energy Cannon 3 | . . . . . . . . . . 1 . 2 Ballistic Gun 13 | . 6 . . . 2 2 1 . . 2 . . Ballistic Cannon 1 | . . . . . . . . 1 . . . . Launcher 2 | . . . . . . . 1 . . . 1 . Special Weapon 3 | . 2 . . . . 1 . . . . . . Impact Weapon 1 | . . . . . 1 . . . . . . . Slashing Weapon . | . . . . . . . . . . . . . Piercing Weapon . | . . . . . . . . . . . . . Special Melee Weapon . | . . . . . . . . . . . . . Unidentified Prototypes 2 | . . . . . . . . . . 2 . . Parts Lost 24 | . 2 . . . 1 5 3 2 2 2 4 3 Power 3 | . . . . . . 1 . . . 1 . 1 Propulsion 8 | . 1 . . . 1 1 2 . 1 1 . 1 Utility 3 | . . . . . . 1 . . 1 . 1 . Weapon 10 | . 1 . . . . 2 1 2 . . 3 1 Highest Loss Streak 2 | . 1 . . . 1 2 2 1 1 2 2 2 To Critical Strikes 2 | . . . . . . 1 1 . . . . . Average Backups 17 | 1 11 15 15 15 19 19 19 18 19 19 18 19 Power . | . . 1 . . . . 1 1 1 . 1 1 Propulsion 2 | . 3 2 3 3 2 2 1 3 3 2 1 1 Utility 7 | . 2 4 4 5 9 8 9 9 9 9 8 7 Weapon 6 | 1 5 7 7 7 7 7 6 3 3 6 5 8 Tool/Special . | . . . . . . . . . . . . . Unused Backups 21 | . 3 1 . . 3 2 2 . . 1 1 8 Power 3 | . . . . . . 1 1 . . . 1 . Propulsion . | . . . . . . . . . . . . . Utility 4 | . . . . . 3 . . . . . . 1 Weapon 14 | . 3 1 . . . 1 1 . . 1 . 7 Tool/Special . | . . . . . . . . . . . . . Average Slot Usage (%) 98 | . 98 100 100 100 99 99 99 99 99 99 85 88 Engine 5 | . 14 14 14 14 9 3 . . . 3 . . Core 3 | . . . . . . 5 9 9 9 3 2 . Treads 27 | . 28 28 28 28 26 26 25 27 26 29 25 23 Device 12 | . 14 14 14 14 17 9 9 17 8 9 8 14 Storage 9 | . 14 14 14 14 9 9 9 9 9 7 7 7 Processor 3 | . . . . . . . . . 8 15 17 15 Hackware 2 | . . . . . . 9 9 . . . . . Protection 6 | . . . . . 9 8 8 9 9 4 1 . Energy Gun 1 | . 13 . . . . . . . . . . . Ballistic Gun 20 | . 9 28 28 28 23 23 26 20 17 11 8 . Impact Weapon 2 | . . . . . 3 1 . . 3 7 5 7 Peak Build Rating 60 | 6 13 13 13 13 28 38 37 35 35 48 60 57 Average Rating 28 | 5 9 12 12 12 24 31 33 31 31 44 50 55 On Entrance 23 | . 6 12 13 13 13 27 34 33 31 33 48 47 Naked Turns . | . . . . . . . . . . . . . Heaviest Build 76 | 11 34 34 34 34 67 64 64 69 68 68 76 76 Greatest Support 118 | 40 43 43 43 43 69 66 63 60 60 88 118 110 Greatest Overweight (x) 6 | . 1 . . . 1 1 6 1 1 . . 1 Average Overweight (x) . | . . . . . . . 1 . 1 . . . Largest Inventory Capacity 20 | 8 15 15 15 20 20 20 20 20 20 20 20 20 Average Capacity 18 | 7 13 15 15 15 19 20 20 20 20 20 20 20 Most Carried 20 | 4 15 15 15 15 20 20 20 20 20 20 20 20 Average Carried 17 | 1 11 14 14 14 19 19 19 18 19 19 18 19 Final Capacity 20 | 8 15 15 15 15 20 20 20 20 20 20 20 20 Final Carried 20 | 4 15 15 15 15 20 19 19 18 19 20 16 20 Class Distribution -------------------- 38% | Mutant 32% | Tank 12% | Scavenger-Tank 11% | Assassin 3% | Scavenger-Mutant Dominant Class ---------------- Mutant | -10/Materials Mutant | -10/Mines Mutant | -10/Exiles Mutant | -9/Mines Tank | -8/Materials Tank | -8/Garrison Tank | -8/Materials Scavenger-Tank | -8/Garrison Scavenger-Tank | -8/Materials Assassin | -7/Factory Assassin | -7/Waste Assassin | -7/Factory Resources | -11 -10 -10 -10 -9 -8 -8 -8 -8 -8 -7 -7 -7 ----------- Run | Yrd Mat Min Exi Min Mat Gar Mat Gar Mat Fac Was Fac Matter Collected 6469 | 260 210 278 . 72 1473 1662 797 657 431 236 312 81 Remotely 703 | . . . . . . . 108 369 171 55 . . Salvage Created 5133 | 236 350 . . . 1122 1158 750 383 277 222 607 28 Parts 261 | 14 23 . . . 68 70 40 18 16 4 8 . Haulers Intercepted 1 | . . . . . . . 1 . . . . . Recyclers Shooed 1 | . . . . . . . . . . 1 . . Parts Field Recycled . | . . . . . . . . . . . . . Retrieved Matter . | . . . . . . . . . . . . . Parts Self-Destructed . | . . . . . . . . . . . . . Prevented . | . . . . . . . . . . . . . Kills | -11 -10 -10 -10 -9 -8 -8 -8 -8 -8 -7 -7 -7 ------- Run | Yrd Mat Min Exi Min Mat Gar Mat Gar Mat Fac Was Fac Combat Hostiles Destroyed 100 | . 13 . . . 23 26 19 9 6 2 2 . Melee 2 | . . . . . . . . 1 . 1 . . Guns 89 | . 13 . . . 23 26 18 4 4 . 1 . Cannons 6 | . . . . . . . . 4 2 . . . AOE 2 | . . . . . . . 1 . . . 1 . Classes Destroyed 16 | 2 4 . . . 4 1 3 . . 1 1 . Worker 8 | . . . . . 3 . . . 1 4 . . Builder 2 | . . . . . . . . . . 1 . 1 Tunneler 7 | 7 . . . . . . . . . . . . Hauler 1 | . . . . . . . 1 . . . . . Recycler 5 | 1 . . . . 2 . . . 1 1 . . Mechanic 1 | . . . . . 1 . . . . . . . Operator 2 | . 1 . . . 1 . . . . . . . Watcher 2 | . 1 . . . 1 . . . . . . . Swarmer 24 | . 9 . . . 9 3 3 . . . . . Grunt 48 | . 4 . . . 8 13 13 5 5 . . . Brawler 1 | . . . . . . . 1 . . . . . Protector 1 | . . . . . . . 1 . . . . . Sentry 14 | . . . . . 5 4 1 2 1 1 . . Hunter 3 | . . . . . 1 2 . . . . . . Programmer 7 | . . . . . . 4 . 2 . 1 . . Compactor 2 | . . . . . . . . . . . 2 . Best Kill Streak 5 | 2 5 . . . 5 4 5 5 5 1 1 1 Combat Bots Only 5 | . 5 . . . 5 4 5 5 3 1 1 . Max Kills in Single Turn 2 | 1 1 . . . 2 2 2 1 1 1 1 1 Gunslinging 1 | . . . . . 1 1 1 . . . . . Exploded 1 | . . . . . . . 1 . . . 1 . Melee 1 | . . . . . . . . 1 . 1 . . Uniques/NPCs Destroyed . | . . . . . . . . . . . . . Combat | -11 -10 -10 -10 -9 -8 -8 -8 -8 -8 -7 -7 -7 -------- Run | Yrd Mat Min Exi Min Mat Gar Mat Gar Mat Fac Was Fac Hostile Shots Fired 690 | . 87 . . 8 163 120 77 53 47 109 4 22 Missed 204 | . 19 . . 4 47 36 23 11 13 47 . 4 Hits 486 | . 68 . . 4 116 84 54 42 34 62 4 18 Melee 8 | . . . . . . . 4 . . . 4 . Projectile 478 | . 68 . . 4 116 84 50 42 34 62 . 18 Critical Strikes 22 | . 2 . . . 5 5 4 1 . . 2 3 Part Disruptions 1 | . . . . . . . . . . . . 1 Damage Taken 7114 | . 564 . . 36 1558 1361 864 647 530 518 766 270 Core 754 | . 100 . . . 152 117 87 109 31 48 80 30 Absorbed by Shields . | . . . . . . . . . . . . . Regen/Repaired (Parts) 1170 | . . . . . 413 . 269 . . 488 . . Core Remaining (%) 56 | 100 . . . 60 . . . . 9 . . . Volleys Fired 352 | 39 43 . . 4 86 67 46 26 20 6 10 5 Largest 3 | 1 2 . . 2 3 3 3 3 3 2 3 2 Hottest 145 | 50 100 . . 46 100 111 83 90 90 93 84 145 Shots Fired 861 | 39 78 . . 8 242 192 133 60 61 12 26 10 Gun 782 | 39 70 . . 8 234 192 130 40 40 11 18 . Cannon 52 | . . . . . . . . 20 21 1 . 10 Launcher 11 | . . . . . . . 3 . . . 8 . Special 16 | . 8 . . . 8 . . . . . . . Kinetic 714 | . 18 . . 8 234 174 130 60 61 11 18 . Thermal 105 | 39 29 . . . 8 18 . . . 1 . 10 Explosive 11 | . . . . . . . 3 . . . 8 . Electromagnetic 31 | . 31 . . . . . . . . . . . Robot Hit Streak 14 | 6 11 . . 2 12 14 10 10 7 8 8 9 Robot Miss Streak 8 | 6 4 . . 5 8 3 5 2 3 6 3 2 Penetration Max 1 | . . . . . . 1 . . . . . . Secondary Targets 15 | . 2 . . . 3 3 6 1 . . . . Max Gunslinging Chain 2 | . 1 . . . 2 1 2 1 . . . . Shots Hit Robots 543 | 26 37 . . 2 149 125 80 38 38 24 17 7 Core Hits 221 | 9 17 . . . 51 56 41 20 17 3 7 . Critical Kills 2 | . . . . . . . . . 1 . 1 . Critical Parts Destroyed 4 | . . . . . 1 . . . 1 2 . . Critical Strikes 15 | 4 3 . . . 1 1 . 1 2 2 1 . Burn 8 | 4 3 . . . . 1 . . . . . . Destroy 3 | . . . . . . . . . 2 . 1 . Blast 1 | . . . . . . . . 1 . . . . Smash 3 | . . . . . 1 . . . . 2 . . Melee Attacks 138 | . . . . . 28 50 1 2 7 24 5 21 Impact 138 | . . . . . 28 50 1 2 7 24 5 21 Slashing . | . . . . . . . . . . . . . Piercing . | . . . . . . . . . . . . . Sneak Attacks 11 | . . . . . 3 . . . . 7 . 1 Combat Hostiles . | . . . . . . . . . . . . . Follow-up Attacks . | . . . . . . . . . . . . . Damage Inflicted 11930 | 338 559 24 . 49 2676 2099 1894 818 889 1254 1013 317 Guns 8246 | 338 507 . . 49 2282 2099 1536 535 569 134 197 . Cannons 724 | . . . . . . . . 247 314 33 . 130 Explosions 1226 | . 52 . . . . . 358 . . . 816 . Melee 1696 | . . . . . 386 . . 36 . 1087 . 187 Ramming 38 | . . 24 . . 8 . . . 6 . . . Kinetic 8016 | . 203 . . 49 2282 1950 1536 782 883 134 197 . Thermal 824 | 338 174 . . . . 149 . . . 33 . 130 Explosive 1174 | . . . . . . . 358 . . . 816 . Electromagnetic 182 | . 182 . . . . . . . . . . . Impact 1696 | . . . . . 386 . . 36 . 1087 . 187 Slashing . | . . . . . . . . . . . . . Piercing . | . . . . . . . . . . . . . Highest Corruption 29 | . . . . . . 4 5 6 6 . 29 29 Average Corruption 7 | . . . . . . 3 4 5 6 . 16 29 Corruption Purged . | . . . . . . . . . . . . . Corruption Blocked . | . . . . . . . . . . . . . Effects 193 | . . . . . . 65 17 22 32 . 17 40 Message Errors 43 | . . . . . . 17 5 2 5 . 3 11 Matter Fused 43 | . . . . . . 12 4 5 9 . 2 11 Heat Flow Errors 29 | . . . . . . 8 2 7 7 . 1 4 Energy Discharges 19 | . . . . . . 7 . 3 3 . 1 5 Parts Rejected 3 | . . . . . . . 1 . . . 2 . Parts Fused 5 | . . . . . . 1 1 2 1 . . . Data Loss (minor) 27 | . . . . . . 10 2 2 5 . 2 6 Data Loss (major) 5 | . . . . . . 3 . . . . 2 . Misfires 6 | . . . . . . 3 . 1 1 . . 1 Alerts 7 | . . . . . . 4 1 . 1 . . 1 Misdirections 4 | . . . . . . . . . . . 4 . Weapon Failures 2 | . . . . . . . 1 . . . . 1 Overload Shots . | . . . . . . . . . . . . . Overflow Damage 890 | . . 1 . . 272 . . . . 523 . 94 Projectiles 20 | . . . . . . . . . . . . 20 Explosions . | . . . . . . . . . . . . . Melee 870 | . . 1 . . 272 . . . . 523 . 74 Knockbacks 13 | . . 1 . . 3 . . 4 3 2 . . Impact 6 | . . 1 . . 3 . . . . 2 . . Kinetic 7 | . . . . . . . . 4 3 . . . Secondary . | . . . . . . . . . . . . . Self-Inflicted Damage 128 | . . . . . . . 32 . . . 96 . Shots 5 | . . . . . . . 2 . . . 3 . Rammed 6 | . . 2 . . 2 . . . 2 . . . Targets Rammed 6 | . . 2 . . 2 . . . 2 . . . Kicked . | . . . . . . . . . . . . . Crushed . | . . . . . . . . . . . . . Highest Temperature 446 | 90 310 . . 8 270 281 121 267 446 . 189 239 Average Temperature 77 | 30 80 . . 6 56 66 27 122 152 . 48 91 Received Heat Transfer 2091 | . 66 . . . 540 324 432 288 297 144 . . Effects 6 | . 2 . . . . . . . 4 . . . Shutdowns 1 | . . . . . . . . . 1 . . . Energy Bleed 1 | . . . . . . . . . 1 . . . Interference 4 | . 2 . . . . . . . 2 . . . Siege Activations . | . . . . . . . . . . . . . Martial Activations . | . . . . . . . . . . . . . Shielding Activations . | . . . . . . . . . . . . . Robots Disrupted . | . . . . . . . . . . . . . Combat Hostiles . | . . . . . . . . . . . . . Robots Corrupted 6 | . . . . . 2 . . . . 3 . 1 Combat Hostiles 1 | . . . . . . . . . . 1 . . Parts Fried 9 | . . . . . 3 . . . . 4 . 2 Impact Corruptions 32 | . . 1 . . 11 . . . . 17 . 3 Robots Melted . | . . . . . . . . . . . . . Combat Hostiles . | . . . . . . . . . . . . . Parts Melted 4 | 1 2 . . . . 1 . . . . . . Heat Transferred 2592 | 1295 692 . . . . 407 . . . 37 . 161 Parts Sabotaged . | . . . . . . . . . . . . . Parts Stolen . | . . . . . . . . . . . . . Parts Stripped . | . . . . . . . . . . . . . Power Chain Reactions 1 | . 1 . . . . . . . . . . . Alert | -11 -10 -10 -10 -9 -8 -8 -8 -8 -8 -7 -7 -7 ------- Run | Yrd Mat Min Exi Min Mat Gar Mat Gar Mat Fac Was Fac Maximum Alert Level 5 | . 1 . . . 1 5 4 4 2 . . . Low Security (%) 53 | 100 88 100 . 100 70 3 . . 24 100 100 100 Level 1 16 | . 11 . . . 29 16 . . 59 . . . Level 2 5 | . . . . . . 18 . . 15 . . . Level 3 5 | . . . . . . 15 . 43 . . . . Level 4 12 | . . . . . . 19 100 56 . . . . Level 5 6 | . . . . . . 27 . . . . . . High Security . | . . . . . . . . . . . . . Max Security . | . . . . . . . . . . . . . Peak Influence 2643 | 10 239 43 . 81 254 2643 1420 1222 595 59 16 45 Initial 1288 | . . 43 . . . 113 1288 904 595 54 . . Average 452 | 1 95 2 . 15 126 1118 1342 1079 281 6 . 3 Influence Increases 5296 | 40 462 . . 162 776 2580 514 338 206 120 34 64 Destroy 0b10 Robot/C 2100 | . 260 . . 120 500 520 360 180 120 40 . . Destroy 0b10 Robot/NC 145 | 40 10 . . . 40 . 10 . 10 30 . 5 Destroy Leader 336 | . 32 . . 20 112 30 82 20 20 20 . . Allied During Kill 33 | . . . . 22 11 . . . . . . . Successful Hack 190 | . 15 . . . 37 48 8 28 28 26 . . Disable Machine 60 | . . . . . . 15 30 . 15 . . . Anti-Garrison Action 1850 | . . . . . . 1800 . 50 . . . . Destroy Structure 237 | . 10 . . . 31 77 24 30 13 4 34 14 Lose Combat Pursuer 345 | . 135 . . . 45 90 . 30 . . . 45 Influence Decreases 5296 | 40 349 113 . 162 602 111 1765 508 1307 241 34 64 Entered New Map 2668 | . . 70 . . . 61 1355 488 627 67 . . Time Decay 2246 | 40 329 43 . 162 532 . 380 . 510 174 19 57 Lost Part 172 | . 20 . . . 10 50 30 20 20 . 15 7 Lost Ally 60 | . . . . . 60 . . . . . . . Purge Threat 150 | . . . . . . . . . 150 . . . Squads Dispatched 19 | . 2 . . . 3 . 8 . 1 2 . 3 Investigation 1 | . . . . . 1 . . . . . . . Extermination 3 | . . . . . . . . . . 2 . 1 Reinforcement 8 | . 2 . . . 2 . 1 . 1 . . 2 Assault 3 | . . . . . . . 3 . . . . . Garrison 4 | . . . . . . . 4 . . . . . Intercept . | . . . . . . . . . . . . . Searches Triggered . | . . . . . . . . . . . . . Construction Impeded 2 | . . . . . . . . . 1 . . 1 Haulers Reinforced . | . . . . . . . . . . . . . Active Scanning Responses . | . . . . . . . . . . . . . Cargo Convoy Interrupts . | . . . . . . . . . . . . . Stealth | -11 -10 -10 -10 -9 -8 -8 -8 -8 -8 -7 -7 -7 --------- Run | Yrd Mat Min Exi Min Mat Gar Mat Gar Mat Fac Was Fac Distress Signals 14 | . 1 . . . 9 . 3 . . 1 . . Communications Jammed . | . . . . . . . . . . . . . Distress Signals . | . . . . . . . . . . . . . Times Spotted 187 | . 25 . . 6 64 32 26 10 6 5 7 6 Peak Tracking Total 8 | . 8 . . 3 8 3 6 6 3 2 4 5 Tactical Retreats 22 | . 5 . . . 12 2 . 1 . . 1 1 Traps | -11 -10 -10 -10 -9 -8 -8 -8 -8 -8 -7 -7 -7 ------- Run | Yrd Mat Min Exi Min Mat Gar Mat Gar Mat Fac Was Fac Traps Triggered 4 | . . . . . 1 1 . 1 . 1 . . Indirectly . | . . . . . . . . . . . . . Trap Hack Attempts . | . . . . . . . . . . . . . Triggered . | . . . . . . . . . . . . . Disarmed . | . . . . . . . . . . . . . Reprogrammed . | . . . . . . . . . . . . . Reused . | . . . . . . . . . . . . . Traps Extracted . | . . . . . . . . . . . . . Installed . | . . . . . . . . . . . . . Triggered . | . . . . . . . . . . . . . Machines | -11 -10 -10 -10 -9 -8 -8 -8 -8 -8 -7 -7 -7 ---------- Run | Yrd Mat Min Exi Min Mat Gar Mat Gar Mat Fac Was Fac Machines Disabled 11 | . . . . . . 7 2 1 1 . . . Max in Single Turn 1 | . . . . . . 1 1 1 1 . . . Garrison Access 2 | . . . . . . . . . 1 1 . . Garrison Relay 6 | . . . . . . 5 . 1 . . . . Phase Generator 1 | . . . . . . 1 . . . . . . Machines Repaired . | . . . . . . . . . . . . . Machines Dismantled 8 | . . . . . . 7 . 1 . . . . Machines Sabotaged . | . . . . . . . . . . . . . Overloaded Fab Kills . | . . . . . . . . . . . . . Hacking | -11 -10 -10 -10 -9 -8 -8 -8 -8 -8 -7 -7 -7 --------- Run | Yrd Mat Min Exi Min Mat Gar Mat Gar Mat Fac Was Fac Machines Accessed 36 | . 2 . 1 . 13 2 4 2 3 9 . . Terminals 22 | . 2 . . . 9 2 1 2 2 4 . . Fabricators . | . . . . . . . . . . . . . Repair Stations 3 | . . . . . 1 . 1 . . 1 . . Recycling Units 2 | . . . . . 1 . 1 . . . . . Scanalyzers 4 | . . . . . 1 . . . . 3 . . Garrison Access 4 | . . . . . 1 . 1 . 1 1 . . Total Hacks 124 | . 8 . 4 . 49 5 15 3 7 33 . . Successful 77 | . 5 . 4 . 29 4 7 2 4 22 . . Failed 46 | . 3 . . . 19 1 8 1 3 11 . . Catastrophic 5 | . . . . . 1 . 2 . . 2 . . Database Lockouts 1 | . . . . . 1 . . . . . . . Manual 43 | . 7 . . . 22 3 2 . 4 5 . . Terminals 73 | . 8 . . . 33 5 4 3 6 14 . . Fabricators . | . . . . . . . . . . . . . Repair Stations 16 | . . . . . 9 . 3 . . 4 . . Recycling Units 8 | . . . . . 1 . 7 . . . . . Scanalyzers 18 | . . . . . 5 . . . . 13 . . Garrison Access 5 | . . . . . 1 . 1 . 1 2 . . Terminal Hacks 27 | . 3 . 4 . 10 2 1 2 2 3 . . Record 4 | . . . 4 . . . . . . . . . Part Schematic 1 | . . . . . . . . . . 1 . . Robot Schematic 1 | . 1 . . . . . . . . . . . Robot Analysis 2 | . 1 . . . 1 . . . . . . . Prototype ID Bank 1 | . . . . . 1 . . . . . . . Branch Access Points 3 | . . . . . 1 . 1 . . 1 . . Emergency Access Points 2 | . . . . . . 1 . 1 . . . . Unreport Threat 1 | . . . . . . . . . 1 . . . Locate Traps 5 | . . . . . 4 . . . 1 . . . Hauler Manifests 2 | . 1 . . . 1 . . . . . . . Registered Components 1 | . . . . . 1 . . . . . . . Zone Layout 2 | . . . . . 1 . . . . 1 . . Garrison Registry 1 | . . . . . . . . 1 . . . . Security Stations 1 | . . . . . . 1 . . . . . . Fabricator Hacks . | . . . . . . . . . . . . . Repair Station Hacks 14 | . . . . . 8 . 2 . . 4 . . Scan Component 7 | . . . . . 4 . 1 . . 2 . . Repair 7 | . . . . . 4 . 1 . . 2 . . Recycling Unit Hacks 3 | . . . . . 1 . 2 . . . . . Retrieve Matter 1 | . . . . . . . 1 . . . . . Retrieve Components 2 | . . . . . 1 . 1 . . . . . Scanalyzer 14 | . . . . . 3 . . . . 11 . . Insert Component 6 | . . . . . 2 . . . . 4 . . Analyze 8 | . . . . . 1 . . . . 7 . . Garrison Access Hacks 4 | . . . . . 1 . 1 . 1 1 . . Unlock Access 2 | . . . . . 1 . 1 . . . . . Seal Access 2 | . . . . . . . . . 1 1 . . Unauthorized Hacks 15 | . 2 . . . 6 2 1 . 1 3 . . Terminals 15 | . 2 . . . 6 2 1 . 1 3 . . Botnet 15 | . 2 . . . 6 2 1 . 1 3 . . Fabricators . | . . . . . . . . . . . . . Repair Stations . | . . . . . . . . . . . . . Recycling Units . | . . . . . . . . . . . . . Scanalyzers . | . . . . . . . . . . . . . Garrison Access . | . . . . . . . . . . . . . Data Cores Recovered . | . . . . . . . . . . . . . Used . | . . . . . . . . . . . . . Hacking Detections 29 | . 2 . . . 10 2 3 2 2 8 . . Full Trace Events 1 | . . . . . 1 . . . . . . . Feedback Events . | . . . . . . . . . . . . . Feedback Blocked . | . . . . . . . . . . . . . Robot Schematics Acquired 1 | . 1 . . . . . . . . . . . Robots Built . | . . . . . . . . . . . . . Authchips . | . . . . . . . . . . . . . Time . | . . . . . . . . . . . . . Total Robot Build Rating . | . . . . . . . . . . . . . Part Schematics Acquired 6 | . . . . . 1 . . . . 5 . . Parts Built . | . . . . . . . . . . . . . Authchips . | . . . . . . . . . . . . . Time . | . . . . . . . . . . . . . Total Part Build Rating . | . . . . . . . . . . . . . Parts Repaired 7 | . . . . . 4 . 1 . . 2 . . Time 242 | . . . . . 128 . 38 . . 76 . . Parts Recycled . | . . . . . . . . . . . . . Recycled Matter . | . . . . . . . . . . . . . Retrieved Matter . | . . . . . . . . . . . . . Retrieved Components 4 | . . . . . 1 . 3 . . . . . Parts Scanalyzed 6 | . . . . . 2 . . . . 4 . . Part Schematics Acquired 5 | . . . . . 1 . . . . 4 . . Parts Damaged . | . . . . . . . . . . . . . Bothacking | -11 -10 -10 -10 -9 -8 -8 -8 -8 -8 -7 -7 -7 ------------ Run | Yrd Mat Min Exi Min Mat Gar Mat Gar Mat Fac Was Fac Used RIF Installer . | . . . . . . . . . . . . . Robots Hacked . | . . . . . . . . . . . . . Non-combat . | . . . . . . . . . . . . . Combat . | . . . . . . . . . . . . . Robot Hacks Applied . | . . . . . . . . . . . . . Relay Couplers Released 28 | . . . . . . 25 . 3 . . . . Machine Destruction 24 | . . . . . . 21 . 3 . . . . Programmers 4 | . . . . . . 4 . . . . . . Fabnet Peak Effective % . | . . . . . . . . . . . . . Robots Rewired . | . . . . . . . . . . . . . Allies Hacked . | . . . . . . . . . . . . . Hacks Repelled . | . . . . . . . . . . . . . Allies | -11 -10 -10 -10 -9 -8 -8 -8 -8 -8 -7 -7 -7 -------- Run | Yrd Mat Min Exi Min Mat Gar Mat Gar Mat Fac Was Fac Total Allies 3 | . . 3 . . . . . . . . . . Largest Group 3 | . . 3 3 3 3 . . . . . . . Highest-Rated Group 40 | . . 40 40 40 40 . . . . . . . Highest-Rated Ally 16 | . . 16 16 16 16 . . . . . . . Initial Warlord ECA Mod 61 | . . . . . . . 10 10 11 10 10 10 Total Orders . | . . . . . . . . . . . . . Ally Attacks 28 | . . . . 17 11 . . . . . . . Total Damage 210 | . . . . 139 71 . . . . . . . Kills 8 | . . . . 6 2 . . . . . . . Allies Corrupted . | . . . . . . . . . . . . . Allies Melted . | . . . . . . . . . . . . . Intel | -11 -10 -10 -10 -9 -8 -8 -8 -8 -8 -7 -7 -7 ------- Run | Yrd Mat Min Exi Min Mat Gar Mat Gar Mat Fac Was Fac Active Infowar (turns) 14690 | 91 969 995 464 959 3255 2922 484 627 1386 1310 295 933 Optics 2899 | . . . . . . . . . 1346 1310 243 . Sensors 2454 | . . . . . . . . . . 1226 295 933 Structural 762 | . . . . . . 40 67 . 3 . . 652 Seismic 11990 | 91 969 995 464 959 3016 2882 466 627 1277 . . 244 Jamming 15 | . . . . . . . . . . 15 . . ECM 2185 | . . . . . 2185 . . . . . . . Robot Analysis Total 2 | . 1 . . . 1 . . . . . . . Derelict Logs Recovered 3 | . . 1 . 2 . . . . . . . . Drone Launches . | . . . . . . . . . . . . . Drone Recoveries . | . . . . . . . . . . . . . Exploration | -11 -10 -10 -10 -9 -8 -8 -8 -8 -8 -7 -7 -7 ------------- Run | Yrd Mat Min Exi Min Mat Gar Mat Gar Mat Fac Was Fac Turns Passed 16765 | 316 1187 995 464 972 3317 3930 883 777 1386 1310 295 933 Spaces Moved 7026 | 142 554 606 283 583 1256 1599 295 236 330 657 140 345 Core 1 | 1 . . . . . . . . . . . . Treads 6967 | 141 554 606 283 583 1256 1599 237 236 330 657 140 345 Legs . | . . . . . . . . . . . . . Wheels 58 | . . . . . . . 58 . . . . . Hover . | . . . . . . . . . . . . . Flight . | . . . . . . . . . . . . . Fastest Speed 50 | 50 160 160 160 160 160 163 163 163 243 162 160 163 Average Speed 171 | 159 160 160 160 160 165 165 205 233 243 162 162 166 Slowest Speed 400 | 160 240 160 160 160 243 243 400 243 243 162 163 245 Overloaded Moves . | . . . . . . . . . . . . . Propulsion Burnouts . | . . . . . . . . . . . . . Robots Hopped . | . . . . . . . . . . . . . Potential Cave-ins 2 | . . . . . . . . . . . 2 . Cave-ins Triggered 2 | . . . . . . . . . . . 2 . Exploration Rate (%) 50 | 5 63 96 60 91 82 95 17 33 21 18 74 7 Regions Visited 12 Branch Regions 3 Pre-discovered Areas 3 | . . 2 1 . . . . . . . . . Known Exits Taken 4 | . . . . 1 1 . 1 . 1 . . . Unknown Exits Taken 4 | 1 1 1 1 . . . . . . . . . Scrap Searched 3 | . . 1 . 2 . . . . . . . . Spaces Dug 79 | . 4 . . . 24 22 1 . 6 3 5 14 Terrain Destroyed 162 | . 12 . . . 28 23 21 . 13 3 48 14 Melee 71 | . . . . . 21 22 1 . 6 3 5 13 Projectile 28 | . 8 . . . 7 1 4 . 7 . . 1 AOE 63 | . 4 . . . . . 16 . . . 43 . Terrain Rammed . | . . . . . . . . . . . . . Walls Destroyed . | . . . . . . . . . . . . . Machines Disabled . | . . . . . . . . . . . . . Actions | -11 -10 -10 -10 -9 -8 -8 -8 -8 -8 -7 -7 -7 --------- Run | Yrd Mat Min Exi Min Mat Gar Mat Gar Mat Fac Was Fac Total 10728 | 190 761 632 295 615 2281 2549 474 403 846 848 178 656 Wait 2736 | . 114 18 10 24 808 718 84 111 460 113 3 273 Move 7012 | 141 553 605 282 582 1256 1595 294 235 329 657 138 345 Hop . | . . . . . . . . . . . . . Pick Up 83 | 4 19 3 1 1 20 5 8 2 3 10 2 5 Fast Attach 37 | 6 . . . . 8 1 4 1 2 8 4 3 Attach 35 | . 3 1 1 . 4 4 4 3 2 6 6 1 Detach 10 | . . . . . . . 2 2 1 4 . 1 Swap 185 | . 19 . . 3 45 48 23 15 18 10 3 1 Drop 72 | . 10 3 1 1 24 5 8 1 2 10 6 1 Fire 352 | 39 43 . . 4 86 67 46 26 20 6 10 5 Melee 138 | . . . . . 28 50 1 2 7 24 5 21 Ram . | . . . . . . . . . . . . . Kick . | . . . . . . . . . . . . . Crush 6 | . . 2 . . 2 . . . 2 . . . Escape Stasis 3 | . . . . . . . . 2 . . 1 . Rewire 1 | . . . . . . 1 . . . . . . Trap . | . . . . . . . . . . . . . Miscellaneous 58 | . . . . . . 55 . 3 . . . . Route ------- -11/Scrapyard -10/Materials (discovered 5 exits: [*Mat x2] / [*Min x2] / [*Sub]) -10/Mines (discovered 3 exits: [*Mat x2] / *Exi) -10/Exiles (discovered 2 exits: [*Min x2]) -9/Mines (discovered 2 exits: *Mat x2) -8/Materials (discovered 2 exits: *Fac / Gar) -8/Garrison (discovered 3 exits: *Mat x3) -8/Materials -8/Garrison (discovered 3 exits: *Mat x3) -8/Materials -7/Factory (discovered 3 exits: *Sto / Low x2) -7/Waste -7/Factory History --------- Turn | Location | Event 63 | -11/Scrapyard | Discovered new exit (range 16) 317 | -11/Scrapyard | Entered Materials 318 | -10/Materials | Build established: Mutant 628 | -10/Materials | Discovered new exit (range 9) 1269 | -10/Materials | Discovered new exit (range 10) 1282 | -10/Materials | Discovered new exit (range 5) 1344 | -10/Materials | Discovered new exit (range 5) 1473 | -10/Materials | Discovered new exit (range 15) 1504 | -10/Materials | Entered Mines 1520 | -10/Mines | Met a Derelict bent on vengeance 1580 | -10/Mines | Deemed a non-threat by the Exiles lab entrance 1581 | -10/Mines | Discovered new exit (range 5) 1764 | -10/Mines | Discovered new exit (range 7) 1795 | -10/Mines | Learned location of Storage (-7) 1872 | -10/Mines | YI-UF0 nonchalantly dropped a Grenade Launcher on the ground 1926 | -10/Mines | Found DCF Scrap (16 items) 2078 | -10/Mines | Discovered new exit (range 14) 2099 | -10/Mines | Assisted by bots powering up and referring to "LRC-V3" 2499 | -10/Mines | Entered Exiles 2499 | -10/Exiles | Accompanied by 3 allies 2525 | -10/Exiles | Discovered new exit (range 15) 2543 | -10/Exiles | Met 8R-AWN 2565 | -10/Exiles | Met EX-HEX 2627 | -10/Exiles | Met EX-DEC 2643 | -10/Exiles | Learned location of Zion (-6) 2688 | -10/Exiles | Met EX-BIN 2858 | -10/Exiles | Discovered new exit (range 14) 2963 | -10/Exiles | Entered Mines 2963 | -9/Mines | Accompanied by 3 allies 2974 | -9/Mines | Discovered new exit (range 10) 3232 | -9/Mines | Found a damaged Exp. Sensor Array with a note attached 3236 | -9/Mines | Found Prototype Device 3298 | -9/Mines | Found a Scrap Suit stashed away for nefarious purposes 3338 | -9/Mines | Identified exit to Materials 3342 | -9/Mines | Learned Materials security intel 3935 | -9/Mines | Entered Materials 3935 | -8/Materials | Accompanied by 3 allies 3935 | -8/Materials | Evolved 4 slots: Propulsion x1, Utility x2, Weapon x1 4165 | -8/Materials | Lost 3 allies 4263 | -8/Materials | Build established: Tank 4942 | -8/Materials | Central database locked down 5955 | -8/Materials | Repaired Imp. Treads 5988 | -8/Materials | Repaired Autogun 6022 | -8/Materials | Repaired Imp. Treads 6055 | -8/Materials | Repaired Autogun 6091 | -8/Materials | Discovered new exit (range 16) 6449 | -8/Materials | Build established: Mutant 7252 | -8/Materials | Identified exit to Garrison 7252 | -8/Materials | Entered Garrison 7342 | -8/Garrison | Triggered checkpoint 7373 | -8/Garrison | Garrison Relay disabled 7865 | -8/Garrison | Triggered checkpoint 7880 | -8/Garrison | Triggered checkpoint 7997 | -8/Garrison | Triggered checkpoint 8037 | -8/Garrison | Garrison Relay disabled 8134 | -8/Garrison | Triggered checkpoint 8150 | -8/Garrison | Build established: Tank 8166 | -8/Garrison | Discovered new exit (range 10) 8594 | -8/Garrison | Triggered checkpoint 8912 | -8/Garrison | Triggered checkpoint 8956 | -8/Garrison | Garrison Relay disabled 9009 | -8/Garrison | Learned Materials security intel 9043 | -8/Garrison | Phase Generator disabled 9193 | -8/Garrison | Discovered new exit (range 12) 9346 | -8/Garrison | Triggered checkpoint 9453 | -8/Garrison | Attempted to access garrison exit controls, blocked by remote lockdown 9736 | -8/Garrison | Garrison Relay disabled 9985 | -8/Garrison | Attempted to access garrison exit controls, blocked by remote lockdown 10330 | -8/Garrison | Triggered checkpoint 10349 | -8/Garrison | Garrison Relay disabled 10530 | -8/Garrison | Discovered new exit (range 15) 11182 | -8/Garrison | Entered Materials 11305 | -8/Materials | Core integrity fell below 50% 11489 | -8/Materials | Garrison activated, responded to threat 11582 | -8/Materials | First assault squad dispatched 11611 | -8/Materials | Repaired Arm. Treads? 11921 | -8/Materials | Garrison activated, responded to threat 12056 | -8/Materials | Identified exit to Garrison 12065 | -8/Materials | Entered Garrison 12287 | -8/Garrison | Build established: Scavenger-Tank 12320 | -8/Garrison | Triggered checkpoint 12403 | -8/Garrison | Garrison Relay disabled 12463 | -8/Garrison | Discovered new exit (range 44) 12463 | -8/Garrison | Discovered new exit (range 83) 12463 | -8/Garrison | Discovered new exit (range 47) 12514 | -8/Garrison | Core integrity fell below 20% 12711 | -8/Garrison | Triggered checkpoint 12842 | -8/Garrison | Entered Materials 13177 | -8/Materials | Discovered new exit (range 19) 14102 | -8/Materials | Build established: Scavenger-Mutant 14225 | -8/Materials | Identified exit to Factory 14228 | -8/Materials | Entered Factory 14228 | -7/Factory | Evolved 2 slots: Propulsion x1, Utility x1 14229 | -7/Factory | Identified Exp. Sensor Array 14235 | -7/Factory | Identified exit to Storage 14235 | -7/Factory | Identified exit to Lower Caves 14859 | -7/Factory | Build established: Assassin 14964 | -7/Factory | Repaired Arm. Treads 15004 | -7/Factory | Repaired Hrd. Medium Armor Plating 15538 | -7/Factory | Sucked down chute 15538 | -7/Factory | Entered Waste 15553 | -7/Waste | EMP discharged 15555 | -7/Waste | Spotted C-40 Crusher 15579 | -7/Waste | Spotted C-40 Crusher 15609 | -7/Waste | Destroyed C-40 Crusher 15614 | -7/Waste | Spotted C-40 Crusher 15653 | -7/Waste | EMP discharged 15653 | -7/Waste | System corruption reached 10% 15655 | -7/Waste | Spotted C-40 Crusher 15660 | -7/Waste | Spotted C-40 Crusher 15661 | -7/Waste | Destroyed C-40 Crusher 15676 | -7/Waste | Spotted C-40 Crusher 15678 | -7/Waste | Crushed by Compactor (1 part destroyed, 1 dropped) 15703 | -7/Waste | Crushed by Compactor (0 parts destroyed, 1 dropped) 15734 | -7/Waste | Crushed by falling debris 15734 | -7/Waste | Crushed by Compactor (1 part destroyed, 1 dropped) 15737 | -7/Waste | Crushed by Compactor (0 parts destroyed, 1 dropped) 15753 | -7/Waste | EMP discharged 15781 | -7/Waste | Crushed by falling debris 15804 | -7/Waste | Discovered new exit (range 16) 15831 | -7/Waste | Identified exit to Factory 15833 | -7/Waste | Entered Factory 16081 | -7/Factory | Build established: Mutant 16420 | -7/Factory | Build established: Assassin 16766 | -7/Factory | Self-destructed Last Messages --------------- 16523_ QNO8=R#W7EGDPZ7,6VC=L5BKDNLTIPM L 16560_ U-05 Engineer builds a Wall. 16608_ System corrupted: IFF burst signal emitted. 16613_ ALERT: Potential suspicious activity detected, Programmers report to Factory Zone 3O. 16627_ U-05 Engineer builds a Wall. 16653_ OO<3B DPCUQJNVGUJLAP//AO 16687_ System corrupted: Component data lost. 16693_ ALERT: All DSF locations entering lockdown mode. 16697_ U-05 Engineer builds a Wall. 16705_ TOPBI4ACN=|V4K&HMZ7/H7CFKNL/DBK//OS 16708_ System corrupted: Plasma Cannon failed to cycle. 16708_ Destroyed Shock Rifle. 16710_ Antimatter Reactor destroyed. 16711_ Destroyed Shock Rifle. 16729_ :H:XD7 XALDTVESXG/JE8U5NB, 16744_ System corrupted: Component data lost. 16759_ M5/M MRP4SW5&W3X|8B/ZF0 16764_ Lgt. Treads destroyed. 16766_ Hvy. Mace destroyed. Map ----- +----------------------------------------------------+ | ?????????????????????????????????????????????????? | | ?????????????????????????????????????????????????? | | ?????????????????????????????????????????????????? | | ?????????????????????????????????????????????????? | | ?????????????????????????????????????????????????? | | ?????????????????????????????????????????????????? | | ?????????????????????????????????????????????????? | | ?????????????????????????????????????????????????? | | ?????????"""?????????????????????????????????????? | | ??? """?"""??????????????Y?????????????????????? | | ???? """""""????????????????????????????????????? | | ?? ##############?????????????????????? | | ??? o ##############?????????????????????? | | ???? # ##?????????????????????? | | ?????T"" # ##?????????????????????? | | ??????"" # ##?????????????k???????? | | ??? # ##?????????????????????? | | ???#####+###### ##?????????????????????? | | ???## + ##?????????????????????? | | ???## # ##?????????????????????? | | ???## # ##?????????????????????? | | ???## + ##?????????????????????? | | ???## ### ###### ????????????????? | | ???## ### s###T # ???????? | | ??### ### s ???????? | | ??### ### ps @# ???????? | | ?? # ####+########## ???????? | | ??" # s k ????????? | | ? # ????????? | | """ # ?????????? | | # ?????????? | | """ + ?????????? | | # ??????????? | | """ # m ??????????? | | # ############ ##########??????????? | | """ # # # # ??????????? | | # # ??????????? ????????????????????? | | # # ???????????? ?????????????????????? | | ##### # ???????????????????????????????????? | | + # ???????????????????????????????????? | | # + ??????????????u????????????????????? | | # # ???????????????????????????????????? | | # # ???????????????????????????????????? | | # # ???????????????????????????????????? | | # # ???????????????a???????????????????? | | # # ???????????????????????????????????? | | # # ???????????????????????????????????? | | # # ???????????????????????????????????? | | # # ???????????????????????????????????? | | + # ???????????????????????????????????? | +----------------------------------------------------+ Best States ------------- Heat Dissipation 64 Coolant Potential 50 Energy Generation 21 Energy Capacity 325 Matter Stores 300 Matter Capacity 500 Sight Range 20 Robot Scan Range 20 Terrain Scan Density 10 ECM Strength 1 Jamming Range 12 Armor Coverage 375 Evasion (%) 40 Target Analysis 5 Armor Integrity Analysis 30 Recoil Reduction 4 Offensive Hacking 10 Item Schematics ----------------- Disposable Heat Sink | -8/Materials | Scanalyzed Nuclear Pulse Array | -7/Factory | Hacked Structural Scanner | -7/Factory | Scanalyzed Adv. Terrain Scanner | -7/Factory | Scanalyzed Armor Integrity Analyzer | -7/Factory | Scanalyzed Hrd. Medium Armor Plating | -7/Factory | Scanalyzed Robot Schematics ------------------ S-10 Pest | -10/Materials | Hacked Fabricated ------------ Nothing Repaired ---------- Imp. Treads | 12% | -8/Materials Autogun | 10% | -8/Materials Imp. Treads | 42% | -8/Materials Autogun | 26% | -8/Materials Arm. Treads | 10% | -8/Materials Arm. Treads | 12% | -7/Factory Hrd. Medium Armor Plating | 6% | -7/Factory Alien Tech Used ----------------- None Achievements -------------- None Challenges ------------ None Game ------ Seed GuidedArcProtomatter Manual? 0 Play Time 02:58:46 Cumulative 163.7 hours Start 2025.10.12 @ 18:02:08 End 2025.10.18 @ 15:53:14 Sessions 7 Manual Loads 0 Difficulty Rogue Special Mode None Game No. 56 Rogue 56 Adventurer 0 Explorer 0 Win Type - Total 1 Types 1/0/0/0/0/0/0/0/0/0 Lore% 42 Gallery% 43 Achievement% 42 Wizard Run 0 Options --------- Layout 0 ASCII 1 Keyboard 1 Movement Arrows Keybinds 0 Fullscreen 1 Font 28/Smallcaps Map View 72x54 Zoom Use 0% Tactical HUD 1 Map Filters NONE Filters NONE Steam 1 RUN: bc58a546-7689-47f5-9f8b-75a0cd758fb7